[Event "Schack-SM 2023: Mastarklassen"]
[Site "Helsingborg Arena, Mellersta Stenbocksgatan 14, Helsingborg, Sweden"]
[Date "2023.07.02"]
[Round "2.6"]
[White "Sundin, Emanuel"]
[Black "Joensson, Jacob"]
[Result "1-0"]
[TimeControl "90 minutes for 40 moves + 30 minutes for the rest of games + 30 seconds per move from move one."]
[WhiteElo "2103"]
[BlackElo "2039"]

1. e4 {[%clk 01:30:51]} {[%emt 00:00:08]} e5 {[%clk 01:30:55]} {[%emt
00:00:06]} 2. Nf3 {[%clk 01:31:15]} {[%emt 00:00:05]} Nc6 {[%clk 01:31:21]}
{[%emt 00:00:04]} 3. d4 {[%clk 01:31:09]} {[%emt 00:00:36]} exd4 {[%clk
01:31:47]} {[%emt 00:00:05]} 4. Bc4 {[%clk 01:31:31]} {[%emt 00:00:07]} Be7
{[%clk 01:32:13]} {[%emt 00:00:04]} 5. Nxd4 {[%clk 01:30:17]} {[%emt 00:01:44]}
Nf6 {[%clk 01:31:30]} {[%emt 00:01:13]} 6. Nc3 {[%clk 01:30:16]} {[%emt
00:00:31]} O-O {[%clk 01:27:54]} {[%emt 00:04:06]} 7. O-O {[%clk 01:30:20]}
{[%emt 00:00:26]} d6 {[%clk 01:24:46]} {[%emt 00:03:38]} 8. Re1 {[%clk
01:29:53]} {[%emt 00:00:58]} Re8 {[%clk 01:24:02]} {[%emt 00:01:14]} 9. h3
{[%clk 01:29:47]} {[%emt 00:00:35]} Bd7 {[%clk 01:13:03]} {[%emt 00:11:29]} 10.
Bf4 {[%clk 01:28:14]} {[%emt 00:02:03]} Bf8 {[%clk 01:02:36]} {[%emt 00:10:58]}
11. Bg3 {[%clk 01:24:34]} {[%emt 00:04:09]} g6 {[%clk 00:56:31]} {[%emt
00:06:35]} 12. f4 {[%clk 01:10:04]} {[%emt 00:15:00]} Bg7 {[%clk 00:53:00]}
{[%emt 00:04:01]} 13. Nf3 {[%clk 01:08:34]} {[%emt 00:02:00]} Qc8 {[%clk
00:36:32]} {[%emt 00:16:58]} 14. Ng5 {[%clk 01:01:24]} {[%emt 00:07:39]} Nd8
{[%clk 00:31:28]} {[%emt 00:05:35]} 15. a4 {[%clk 00:54:19]} {[%emt 00:07:35]}
h6 {[%clk 00:26:18]} {[%emt 00:05:40]} 16. Nf3 {[%clk 00:54:36]} {[%emt
00:00:12]} Ne6 {[%clk 00:25:33]} {[%emt 00:01:16]} 17. Bh2 {[%clk 00:50:10]}
{[%emt 00:04:56]} Bc6 {[%clk 00:23:47]} {[%emt 00:02:16]} 18. e5 {[%clk
00:40:56]} {[%emt 00:09:44]} dxe5 {[%clk 00:21:18]} {[%emt 00:02:59]} 19. Nxe5
{[%clk 00:40:05]} {[%emt 00:01:21]} Bd7 {[%clk 00:17:05]} {[%emt 00:04:44]} 20.
Qf3 {[%clk 00:34:01]} {[%emt 00:06:33]} c6 {[%clk 00:14:22]} {[%emt 00:03:13]}
21. Kh1 {[%clk 00:33:01]} {[%emt 00:01:30]} Re7 {[%clk 00:13:25]} {[%emt
00:01:27]} 22. Rad1 {[%clk 00:29:16]} {[%emt 00:04:15]} Qe8 {[%clk 00:13:24]}
{[%emt 00:00:30]} 23. Nxd7 {[%clk 00:19:36]} {[%emt 00:10:11]} Rxd7 {[%clk
00:12:37]} {[%emt 00:01:17]} 24. f5 {[%clk 00:18:52]} {[%emt 00:01:14]} Rxd1
{[%clk 00:11:34]} {[%emt 00:01:33]} 25. Qxd1 {[%clk 00:15:58]} {[%emt
00:03:23]} gxf5 {[%clk 00:11:15]} {[%emt 00:00:50]} 26. Qf3 {[%clk 00:14:05]}
{[%emt 00:02:24]} Ne4 {[%clk 00:07:30]} {[%emt 00:04:14]} 27. Nxe4 {[%clk
00:11:45]} {[%emt 00:02:50]} fxe4 {[%clk 00:07:54]} {[%emt 00:00:06]} 28. Qxe4
{[%clk 00:10:53]} {[%emt 00:01:21]} Rd8 {[%clk 00:08:09]} {[%emt 00:00:16]} 29.
c3 {[%clk 00:09:43]} {[%emt 00:01:40]} Rd2 {[%clk 00:07:39]} {[%emt 00:01:00]}
30. Qg4 {[%clk 00:07:41]} {[%emt 00:02:31]} Qd8 {[%clk 00:05:21]} {[%emt
00:02:48]} 31. Bf4 {[%clk 00:03:30]} {[%emt 00:04:40]} Nxf4 {[%clk 00:02:48]}
{[%emt 00:03:03]} 32. Qxf4 {[%clk 00:03:53]} {[%emt 00:00:07]} Rd1 {[%clk
00:03:13]} {[%emt 00:00:06]} 33. Bxf7+ {[%clk 00:02:44]} {[%emt 00:01:39]} Kh8
{[%clk 00:03:35]} {[%emt 00:00:08]} 34. Qf1 {[%clk 00:02:37]} {[%emt 00:00:37]}
Rxe1 {[%clk 00:03:18]} {[%emt 00:00:48]} 35. Qxe1 {[%clk 00:03:05]} c5 {[%clk
00:02:15]} {[%emt 00:01:32]} 36. Bb3 {[%clk 00:02:34]} {[%emt 00:01:01]} b6
{[%clk 00:01:29]} {[%emt 00:01:16]} 37. Bc2 {[%clk 00:02:23]} {[%emt 00:00:41]}
a5 {[%clk 00:01:19]} {[%emt 00:00:41]} 38. Qe4 {[%clk 00:02:31]} {[%emt
00:00:21]} Kg8 {[%clk 00:01:38]} {[%emt 00:00:12]} 39. Bb3+ {[%clk 00:02:13]}
{[%emt 00:00:49]} Kh8 {[%clk 00:01:55]} {[%emt 00:00:13]} 40. Bc2 {[%clk
00:02:29]} {[%emt 00:00:13]} Kg8 {[%clk 00:02:19]} {[%emt 00:00:06]} 41. Qe6+
{[%clk 00:26:36]} {[%emt 00:06:23]} Kh8 {[%clk 00:32:33]} {[%emt 00:00:16]} 42.
Qf5 {[%clk 00:26:44]} {[%emt 00:00:22]} Kg8 {[%clk 00:32:52]} {[%emt 00:00:11]}
43. Qh7+ {[%clk 00:25:45]} {[%emt 00:01:28]} Kf8 {[%clk 00:33:16]} {[%emt
00:00:07]} 44. Bb3 {[%clk 00:25:28]} {[%emt 00:00:47]} Qf6 {[%clk 00:33:24]}
{[%emt 00:00:22]} 45. Bc4 {[%clk 00:25:04]} {[%emt 00:00:54]} Qe5 {[%clk
00:32:39]} {[%emt 00:01:15]} 46. Qg8+ {[%clk 00:22:48]} {[%emt 00:02:45]} Ke7
{[%clk 00:33:03]} {[%emt 00:00:06]} 47. Qf7+ {[%clk 00:23:14]} {[%emt
00:00:05]} Kd8 {[%clk 00:33:26]} {[%emt 00:00:07]} 48. Qf2 {[%clk 00:19:45]}
{[%emt 00:03:58]} Ke7 {[%clk 00:30:45]} {[%emt 00:03:12]} 49. Kg1 {[%clk
00:19:30]} {[%emt 00:00:44]} Bf6 {[%clk 00:30:21]} {[%emt 00:00:55]} 50. Kf1
{[%clk 00:14:51]} {[%emt 00:05:09]} Qe4 {[%clk 00:30:10]} {[%emt 00:00:41]} 51.
Qe2 {[%clk 00:14:49]} {[%emt 00:00:32]} Qxe2+ {[%clk 00:30:33]} {[%emt
00:00:07]} 52. Kxe2 {[%clk 00:15:18]} Kd6 {[%clk 00:30:50]} {[%emt 00:00:13]}
53. Kd3 {[%clk 00:08:36]} {[%emt 00:07:13]} Ke5 {[%clk 00:30:10]} {[%emt
00:01:09]} 54. Bf7 {[%clk 00:08:42]} {[%emt 00:00:24]} Kf4 {[%clk 00:29:59]}
{[%emt 00:00:41]} 55. Kc4 {[%clk 00:08:23]} {[%emt 00:00:49]} Kg3 {[%clk
00:29:54]} {[%emt 00:00:35]} 56. Bd5 {[%clk 00:08:47]} {[%emt 00:00:05]} h5
{[%clk 00:30:08]} {[%emt 00:00:17]} 57. Kb5 {[%clk 00:08:29]} {[%emt 00:00:49]}
Bd8 {[%clk 00:30:32]} {[%emt 00:00:05]} 58. Kc6 {[%clk 00:08:17]} {[%emt
00:00:42]} h4 {[%clk 00:30:53]} {[%emt 00:00:09]} 59. Kd7 {[%clk 00:08:32]}
{[%emt 00:00:15]} Bg5 {[%clk 00:30:47]} {[%emt 00:00:36]} 60. Kc7 {[%clk
00:08:38]} {[%emt 00:00:25]} Bc1 {[%clk 00:31:07]} {[%emt 00:00:09]} 61. Kxb6
{[%clk 00:07:54]} {[%emt 00:01:14]} Bxb2 {[%clk 00:31:22]} {[%emt 00:00:16]} 62.
Kxa5 {[%clk 00:08:10]} {[%emt 00:00:13]} Bxc3+ {[%clk 00:31:11]} {[%emt
00:00:41]} 63. Kb5 {[%clk 00:08:26]} {[%emt 00:00:14]} Bd4 {[%clk 00:31:07]}
{[%emt 00:00:34]} 64. a5 {[%clk 00:08:09]} {[%emt 00:00:47]} Be3 {[%clk
00:27:03]} {[%emt 00:04:34]} 65. Kc4 {[%clk 00:07:18]} {[%emt 00:01:21]} Bf4
{[%clk 00:27:25]} {[%emt 00:00:08]} 66. Kxc5 {[%clk 00:07:37]} {[%emt
00:00:10]} 1-0

[Event "Schack-SM 2023: Mastarklassen-elit"]
[Site "Helsingborg Arena, Mellersta Stenbocksgatan 14, Helsingborg, Sweden"]
[Date "2023.07.02"]
[Round "2.5"]
[White "Walinder, Lars"]
[Black "Lind, Jan-Olov"]
[Result "1/2-1/2"]
[TimeControl "90 minutes for 40 moves + 30 minutes for the rest of games + 30 seconds per move from move one."]
[WhiteTitle "FM"]
[WhiteElo "2310"]
[BlackElo "2191"]

1. c4 {[%clk 01:30:41]} {[%emt 00:00:19]} c5 {[%clk 01:30:25]} {[%emt
00:00:35]} 2. Nf3 {[%clk 01:30:45]} {[%emt 00:00:26]} Nc6 {[%clk 01:30:39]}
{[%emt 00:00:17]} 3. d4 {[%clk 01:30:54]} {[%emt 00:00:20]} cxd4 {[%clk
01:31:01]} {[%emt 00:00:08]} 4. Nxd4 {[%clk 01:31:14]} {[%emt 00:00:10]} g6
{[%clk 01:31:01]} {[%emt 00:00:30]} 5. e4 {[%clk 01:31:30]} {[%emt 00:00:14]}
Bg7 {[%clk 01:31:14]} {[%emt 00:00:16]} 6. Be3 {[%clk 01:30:44]} {[%emt
00:01:17]} Nf6 {[%clk 01:31:33]} {[%emt 00:00:11]} 7. Nc3 {[%clk 01:30:52]}
{[%emt 00:00:22]} O-O {[%clk 01:31:37]} {[%emt 00:00:26]} 8. Be2 {[%clk
01:30:55]} {[%emt 00:00:26]} d6 {[%clk 01:31:55]} {[%emt 00:00:13]} 9. O-O
{[%clk 01:30:42]} {[%emt 00:00:43]} Bd7 {[%clk 01:32:21]} {[%emt 00:00:05]} 10.
Qd2 {[%clk 01:30:42]} {[%emt 00:00:30]} Nxd4 {[%clk 01:32:10]} {[%emt
00:00:41]} 11. Bxd4 {[%clk 01:26:06]} {[%emt 00:05:06]} Bc6 {[%clk 01:32:21]}
{[%emt 00:00:19]} 12. f3 {[%clk 01:26:20]} {[%emt 00:00:15]} a5 {[%clk
01:32:42]} {[%emt 00:00:09]} 13. b3 {[%clk 01:26:03]} {[%emt 00:00:47]} Nd7
{[%clk 01:32:54]} {[%emt 00:00:19]} 14. Be3 {[%clk 01:26:16]} {[%emt 00:00:16]}
Nc5 {[%clk 01:33:05]} {[%emt 00:00:19]} 15. Rab1 {[%clk 01:26:24]} {[%emt
00:00:22]} e6 {[%clk 01:31:21]} {[%emt 00:02:15]} 16. Bd1 {[%clk 01:25:43]}
{[%emt 00:01:10]} f5 {[%clk 01:04:21]} {[%emt 00:27:30]} 17. exf5 {[%clk
01:24:14]} {[%emt 00:01:59]} gxf5 {[%clk 01:04:21]} {[%emt 00:00:30]} 18. Bc2
{[%clk 01:22:03]} {[%emt 00:02:41]} f4 {[%clk 00:55:34]} {[%emt 00:09:18]} 19.
Bf2 {[%clk 01:15:58]} {[%emt 00:06:34]} Be5 {[%clk 00:54:16]} {[%emt 00:01:49]}
20. Rbd1 {[%clk 01:11:51]} {[%emt 00:04:36]} Qe7 {[%clk 00:51:44]} {[%emt
00:03:03]} 21. Bd4 {[%clk 00:55:12]} {[%emt 00:17:09]} Bxd4+ {[%clk 00:49:08]}
{[%emt 00:03:07]} 22. Qxd4 {[%clk 00:51:15]} {[%emt 00:04:26]} Rad8 {[%clk
00:49:26]} {[%emt 00:00:12]} 23. Rfe1 {[%clk 00:45:32]} {[%emt 00:06:13]} e5
{[%clk 00:44:46]} {[%emt 00:05:10]} 24. Qd2 {[%clk 00:44:35]} {[%emt 00:01:26]}
Qg7 {[%clk 00:42:26]} {[%emt 00:02:49]} 25. Be4 {[%clk 00:37:59]} {[%emt
00:07:07]} Kh8 {[%clk 00:38:11]} {[%emt 00:04:44]} 26. Bd5 {[%clk 00:33:08]}
{[%emt 00:05:23]} Bxd5 {[%clk 00:36:32]} {[%emt 00:02:09]} 27. Qxd5 {[%clk
00:30:40]} {[%emt 00:02:58]} Rg8 {[%clk 00:35:57]} {[%emt 00:01:04]} 28. Re2
{[%clk 00:28:31]} {[%emt 00:02:39]} Qg6 {[%clk 00:23:29]} {[%emt 00:12:58]} 29.
Ne4 {[%clk 00:26:45]} {[%emt 00:02:17]} Nxe4 {[%clk 00:22:36]} {[%emt
00:01:22]} 30. Qxe4 {[%clk 00:25:19]} {[%emt 00:01:56]} Qg7 {[%clk 00:22:11]}
{[%emt 00:00:55]} 31. Rd5 {[%clk 00:24:38]} {[%emt 00:01:11]} Qc7 {[%clk
00:22:05]} {[%emt 00:00:36]} 32. Red2 {[%clk 00:18:49]} {[%emt 00:06:19]} b6
{[%clk 00:18:19]} {[%emt 00:04:17]} 33. Qd3 {[%clk 00:17:26]} {[%emt 00:01:53]}
Qg7 {[%clk 00:15:37]} {[%emt 00:03:12]} 34. Rxd6 {[%clk 00:03:14]} {[%emt
00:14:42]} e4 {[%clk 00:15:10]} {[%emt 00:00:56]} 35. Qd4 {[%clk 00:03:24]}
{[%emt 00:00:20]} Qxd4+ {[%clk 00:14:29]} {[%emt 00:01:11]} 36. R6xd4 {[%clk
00:02:46]} {[%emt 00:01:08]} Rxd4 {[%clk 00:14:24]} {[%emt 00:00:35]} 37. Rxd4
{[%clk 00:03:14]} {[%emt 00:00:02]} exf3 {[%clk 00:14:06]} {[%emt 00:00:47]} 38.
Rd2 {[%clk 00:02:42]} {[%emt 00:01:02]} fxg2 {[%clk 00:12:57]} {[%emt
00:01:39]} 39. Rxg2 {[%clk 00:02:59]} {[%emt 00:00:13]} Rd8 {[%clk 00:11:27]}
{[%emt 00:02:01]} 40. Kf2 {[%clk 00:01:42]} {[%emt 00:01:46]} a4 {[%clk
00:09:28]} {[%emt 00:02:29]} 41. Kf3 {[%clk 00:28:25]} {[%emt 00:03:47]} axb3
{[%clk 00:39:22]} {[%emt 00:00:36]} 42. axb3 {[%clk 00:28:51]} {[%emt
00:00:05]} Rd3+ {[%clk 00:39:41]} {[%emt 00:00:11]} 43. Kxf4 {[%clk 00:29:15]}
{[%emt 00:00:06]} Rxb3 {[%clk 00:39:48]} {[%emt 00:00:22]} 44. Ke4 {[%clk
00:28:59]} {[%emt 00:00:45]} Rh3 {[%clk 00:36:11]} {[%emt 00:04:09]} 45. Kd4
{[%clk 00:24:58]} {[%emt 00:04:30]} Rh5 {[%clk 00:32:14]} {[%emt 00:04:26]} 46.
Rb2 {[%clk 00:22:31]} {[%emt 00:02:58]} Rh6 {[%clk 00:32:26]} {[%emt 00:00:18]}
47. Rg2 {[%clk 00:21:35]} {[%emt 00:01:26]} Rh5 {[%clk 00:32:36]} {[%emt
00:00:20]} 48. Re2 {[%clk 00:21:02]} {[%emt 00:01:03]} Rh6 {[%clk 00:26:04]}
{[%emt 00:07:02]} 49. Kd5 {[%clk 00:21:10]} {[%emt 00:00:22]} Kg7 {[%clk
00:24:29]} {[%emt 00:02:05]} 50. Re6 {[%clk 00:18:13]} {[%emt 00:03:28]} Rh5+
{[%clk 00:24:34]} {[%emt 00:00:24]} 51. Kd4 {[%clk 00:17:59]} {[%emt 00:00:44]}
Rh4+ {[%clk 00:18:50]} {[%emt 00:06:14]} 52. Kc3 {[%clk 00:17:30]} {[%emt
00:00:58]} Rh3+ {[%clk 00:19:02]} {[%emt 00:00:19]} 53. Kd4 {[%clk 00:14:42]}
{[%emt 00:03:17]} Rh4+ {[%clk 00:18:18]} {[%emt 00:01:14]} 54. Kd5 {[%clk
00:14:01]} {[%emt 00:01:11]} Rh5+ {[%clk 00:18:27]} {[%emt 00:00:22]} 55. Kd4
{[%clk 00:14:09]} {[%emt 00:00:22]} 1/2-1/2

[Event "Schack-SM 2023: Mastarklassen"]
[Site "Helsingborg Arena, Mellersta Stenbocksgatan 14, Helsingborg, Sweden"]
[Date "2023.07.02"]
[Round "2.7"]
[White "Frisk, Ellinor"]
[Black "Persson, Lars 1971"]
[Result "1-0"]
[TimeControl "90 minutes for 40 moves + 30 minutes for the rest of games + 30 seconds per move from move one."]
[WhiteTitle "WIM"]
[WhiteElo "2178"]
[BlackElo "1941"]

1. Nf3 {[%clk 01:30:57]} {[%emt 00:00:04]} d6 {[%clk 01:30:53]} {[%emt
00:00:07]} 2. e4 {[%clk 01:30:56]} {[%emt 00:00:30]} Nf6 {[%clk 01:31:09]}
{[%emt 00:00:15]} 3. Nc3 {[%clk 01:30:22]} {[%emt 00:01:04]} Nbd7 {[%clk
01:31:14]} {[%emt 00:00:24]} 4. d4 {[%clk 01:27:07]} {[%emt 00:03:45]} e5
{[%clk 01:31:28]} {[%emt 00:00:17]} 5. dxe5 {[%clk 01:26:56]} {[%emt 00:00:42]}
dxe5 {[%clk 01:31:47]} {[%emt 00:00:10]} 6. Bc4 {[%clk 01:24:10]} {[%emt
00:03:15]} Be7 {[%clk 01:31:53]} {[%emt 00:00:25]} 7. Qe2 {[%clk 01:14:47]}
{[%emt 00:09:53]} O-O {[%clk 01:15:55]} {[%emt 00:16:28]} 8. O-O {[%clk
01:15:14]} {[%emt 00:00:03]} c6 {[%clk 01:11:16]} {[%emt 00:05:09]} 9. a4
{[%clk 01:14:46]} {[%emt 00:00:59]} Qc7 {[%clk 01:06:42]} {[%emt 00:05:04]} 10.
h3 {[%clk 01:12:57]} {[%emt 00:02:18]} Nc5 {[%clk 00:49:40]} {[%emt 00:17:32]}
11. Rd1 {[%clk 01:12:06]} {[%emt 00:01:22]} Be6 {[%clk 00:45:19]} {[%emt
00:04:51]} 12. Bg5 {[%clk 01:09:28]} {[%emt 00:03:07]} Bxc4 {[%clk 00:41:07]}
{[%emt 00:04:43]} 13. Qxc4 {[%clk 01:09:54]} {[%emt 00:00:04]} Ne6 {[%clk
00:41:19]} {[%emt 00:00:17]} 14. Be3 {[%clk 00:59:55]} {[%emt 00:10:30]} b6
{[%clk 00:32:21]} {[%emt 00:09:28]} 15. Ne2 {[%clk 00:55:55]} {[%emt 00:04:30]}
Rad8 {[%clk 00:28:49]} {[%emt 00:04:02]} 16. Ng5 {[%clk 00:53:28]} {[%emt
00:02:57]} Rxd1+ {[%clk 00:22:22]} {[%emt 00:06:57]} 17. Rxd1 {[%clk 00:53:51]}
{[%emt 00:00:06]} Rd8 {[%clk 00:21:17]} {[%emt 00:01:36]} 18. Rxd8+ {[%clk
00:52:16]} {[%emt 00:02:05]} Nxd8 {[%clk 00:21:09]} {[%emt 00:00:37]} 19. Ng3
{[%clk 00:51:22]} {[%emt 00:01:25]} h6 {[%clk 00:19:49]} {[%emt 00:01:50]} 20.
Nf3 {[%clk 00:51:22]} {[%emt 00:00:30]} Ne6 {[%clk 00:19:00]} {[%emt 00:01:19]}
21. b4 {[%clk 00:42:40]} {[%emt 00:09:12]} c5 {[%clk 00:12:49]} {[%emt
00:06:41]} 22. b5 {[%clk 00:41:05]} {[%emt 00:02:04]} Nd7 {[%clk 00:08:21]}
{[%emt 00:04:59]} 23. Nf5 {[%clk 00:37:02]} {[%emt 00:04:33]} Bf6 {[%clk
00:07:07]} {[%emt 00:01:45]} 24. g3 {[%clk 00:31:54]} {[%emt 00:05:37]} Ndf8
{[%clk 00:05:54]} {[%emt 00:01:43]} 25. c3 {[%clk 00:26:43]} {[%emt 00:05:41]}
Qd7 {[%clk 00:05:13]} {[%emt 00:01:11]} 26. Kg2 {[%clk 00:25:16]} {[%emt
00:01:56]} Nc7 {[%clk 00:05:00]} {[%emt 00:00:44]} 27. Bd2 {[%clk 00:24:18]}
{[%emt 00:01:28]} Ng6 {[%clk 00:04:47]} {[%emt 00:00:43]} 28. Kf1 {[%clk
00:19:18]} {[%emt 00:05:30]} Ne7 {[%clk 00:04:38]} {[%emt 00:00:39]} 29. Nxe7+
{[%clk 00:19:01]} {[%emt 00:00:47]} Qxe7 {[%clk 00:04:55]} {[%emt 00:00:14]} 30.
Qd3 {[%clk 00:18:04]} {[%emt 00:01:26]} Qe6 {[%clk 00:05:12]} {[%emt 00:00:13]}
31. Kg2 {[%clk 00:18:00]} {[%emt 00:00:34]} c4 {[%clk 00:04:18]} {[%emt
00:01:24]} 32. Qe2 {[%clk 00:17:58]} {[%emt 00:00:32]} Ne8 {[%clk 00:04:28]}
{[%emt 00:00:21]} 33. Bc1 {[%clk 00:16:32]} {[%emt 00:01:55]} Be7 {[%clk
00:02:38]} {[%emt 00:02:20]} 34. Be3 {[%clk 00:11:54]} {[%emt 00:05:08]} Nd6
{[%clk 00:01:46]} {[%emt 00:01:22]} 35. Nd2 {[%clk 00:12:22]} {[%emt 00:00:02]}
f6 {[%clk 00:01:52]} {[%emt 00:00:24]} 36. f3 {[%clk 00:11:35]} {[%emt
00:01:16]} Qc8 {[%clk 00:01:56]} {[%emt 00:00:26]} 37. Bf2 {[%clk 00:06:21]}
{[%emt 00:05:45]} Bf8 {[%clk 00:02:24]} 38. Nf1 {[%clk 00:06:04]} {[%emt
00:00:46]} Nb7 {[%clk 00:02:28]} {[%emt 00:00:28]} 39. Ne3 {[%clk 00:05:49]}
{[%emt 00:00:45]} Na5 {[%clk 00:02:35]} {[%emt 00:00:23]} 40. Qd1 {[%clk
00:02:43]} {[%emt 00:03:36]} Be7 {[%clk 00:00:32]} {[%emt 00:02:33]} 41. Qd5+
{[%clk 00:01:31]} {[%emt 00:01:41]} Kf8 {[%clk 00:19:00]} {[%emt 00:12:03]} 42.
Nf5 {[%clk 00:31:41]} {[%emt 00:00:20]} Qd8 {[%clk 00:06:27]} {[%emt 00:13:04]}
43. Qe6 {[%clk 00:29:33]} {[%emt 00:02:36]} Ba3 {[%clk 00:05:13]} {[%emt
00:01:45]} 44. Be3 {[%clk 00:26:04]} {[%emt 00:03:58]} Be7 {[%clk 00:01:37]}
{[%emt 00:04:06]} 45. h4 {[%clk 00:17:48]} {[%emt 00:08:46]} Qc7 {[%clk
00:01:54]} {[%emt 00:00:14]} 46. h5 {[%clk 00:17:03]} {[%emt 00:01:15]} Qd8
{[%clk 00:01:52]} {[%emt 00:00:32]} 47. Nh4 {[%clk 00:14:29]} {[%emt 00:03:04]}
Qd6 {[%clk 00:01:08]} {[%emt 00:01:14]} 48. Ng6+ {[%clk 00:11:54]} {[%emt
00:03:05]} Ke8 {[%clk 00:01:37]} {[%emt 00:00:02]} 49. Qg8+ {[%clk 00:12:18]}
{[%emt 00:00:05]} Bf8 {[%clk 00:01:48]} {[%emt 00:00:19]} 50. g4 {[%clk
00:10:00]} {[%emt 00:02:48]} Qa3 {[%clk 00:01:22]} {[%emt 00:00:56]} 51. Qe6+
{[%clk 00:09:10]} {[%emt 00:01:21]} Be7 {[%clk 00:01:21]} {[%emt 00:00:31]} 52.
Qc8+ {[%clk 00:09:16]} {[%emt 00:00:24]} Bd8 {[%clk 00:01:43]} {[%emt
00:00:08]} 53. Qe6+ {[%clk 00:08:43]} {[%emt 00:01:02]} Be7 {[%clk 00:02:10]}
{[%emt 00:00:04]} 54. Kg3 {[%clk 00:08:38]} {[%emt 00:00:34]} Qd6 {[%clk
00:01:48]} {[%emt 00:00:53]} 55. Qg8+ {[%clk 00:08:56]} {[%emt 00:00:12]} Bf8
{[%clk 00:02:13]} {[%emt 00:00:05]} 56. Nh4 {[%clk 00:06:02]} {[%emt 00:03:23]}
Qe7 {[%clk 00:01:49]} {[%emt 00:00:55]} 57. Qd5 {[%clk 00:05:20]} {[%emt
00:01:11]} Qd7 {[%clk 00:01:52]} {[%emt 00:00:28]} 58. Qa8+ {[%clk 00:05:03]}
{[%emt 00:00:47]} Kf7 {[%clk 00:01:04]} {[%emt 00:01:17]} 59. Ng6 {[%clk
00:05:00]} {[%emt 00:00:33]} Ba3 {[%clk 00:01:17]} {[%emt 00:00:18]} 60. Nh8+
{[%clk 00:04:58]} {[%emt 00:00:32]} Ke6 {[%clk 00:01:13]} {[%emt 00:00:33]} 61.
Qg8+ {[%clk 00:05:01]} {[%emt 00:00:27]} Kd6 {[%clk 00:01:28]} {[%emt
00:00:15]} 62. Nf7+ {[%clk 00:05:00]} {[%emt 00:00:32]} Kc7 {[%clk 00:01:11]}
{[%emt 00:00:47]} 63. Qxg7 {[%clk 00:04:44]} {[%emt 00:00:46]} Bb2 {[%clk
00:01:25]} {[%emt 00:00:16]} 64. Qxf6 {[%clk 00:04:05]} {[%emt 00:01:08]} Bxc3
{[%clk 00:01:52]} {[%emt 00:00:04]} 65. Nxe5 {[%clk 00:03:24]} {[%emt
00:01:11]} Be1+ {[%clk 00:02:08]} {[%emt 00:00:14]} 66. Kf4 {[%clk 00:03:04]}
{[%emt 00:00:50]} Qh7 {[%clk 00:02:04]} {[%emt 00:00:34]} 67. Nxc4 {[%clk
00:02:33]} {[%emt 00:01:01]} Bb4 {[%clk 00:01:01]} {[%emt 00:01:32]} 68. Qe5+
{[%clk 00:02:20]} {[%emt 00:00:43]} Kd7 {[%clk 00:00:58]} {[%emt 00:00:34]} 69.
Qd5+ {[%clk 00:02:41]} {[%emt 00:00:09]} Kc8 {[%clk 00:00:49]} {[%emt
00:00:39]} 70. Qa8+ {[%clk 00:01:52]} {[%emt 00:01:19]} Kc7 {[%clk 00:01:07]}
{[%emt 00:00:12]} 71. Qxa7+ {[%clk 00:02:13]} {[%emt 00:00:09]} Nb7 {[%clk
00:01:32]} {[%emt 00:00:05]} 72. Bxb6+ {[%clk 00:02:33]} {[%emt 00:00:10]} 1-0